bitfinex/quotes_ETHUSD_20250905
["timestamp","ask_amount","ask_price","bid_price","bid_amount"]
[1757083621455,4.17325741,4289.7,4285.8,0.17511]
[1757083621750,4.78,4289.6,4287.5,0.7007684]
[1757083621951,0.4656,4289.5,4287.6,0.02332307]
[1757083622248,4.78,4289.4,4287.7,0.02332252]
[1757083622444,1.8422,4289.3,4286.8,0.70095996]
[1757083622611,1.8422,4289.3,4285.1,3.0]
[1757083622612,2.90732,4289.2,4285.8,0.20020069]
[1757083622809,2.90732,4289.2,4285.0,4.05367408]
[1757083622810,2.733,4289.1,4286.1,3.0]
[1757083623015,2.90732,4289.2,4286.4,3.12495745]
[1757083623016,0.001,4286.9,4286.4,3.12495745]
[1757083623223,0.001,4286.9,4285.9,3.0]
[1757083623433,0.001,4286.9,4286.4,2.33296005]
[1757083623642,0.001,4286.9,4286.5,0.408406]
[1757083623824,0.001,4286.9,4286.6,2.33285121]
[1757083624124,0.001,4286.9,4286.6,1.7511]
[1757083624326,0.001,4286.9,4286.7,1.7511]
[1757083624526,0.001,4286.9,4286.7,1.3131]
[1757083624736,0.001,4286.9,4286.1,3.64618153]
[1757083625015,0.001,4286.9,4286.7,1.7511]
[1757083625333,0.001,4286.9,4286.8,0.141]
[1757083625728,0.001,4286.9,4286.8,1.7761]
[1757083625922,0.001,4286.9,4286.8,1.79942742]
[1757083626245,0.001,4286.9,4286.8,1.7761]
[1757083626459,0.001,4286.9,4286.8,4.28645237]
[1757083626624,0.001,4286.9,4286.8,1.7761]
[1757083626830,0.001,4286.9,4286.8,0.025]
[1757083627958,0.4666,4286.9,4286.8,0.025]
[1757083628172,0.001,4286.9,4286.8,0.025]
[1757083628454,3.5996,4286.9,4286.8,0.025]
[1757083628616,3.95956,4286.9,4286.8,0.025]
[1757083628813,5.33616,4286.9,4285.8,0.025]
[1757083629122,1.719,4286.8,4285.8,0.025]
[1757083629322,2.33302168,4286.3,4285.8,0.025]
[1757083629519,2.33323222,4285.9,4285.8,0.025]
[1757083629748,7.10523222,4285.9,4285.8,0.025]
[1757083629950,0.4608,4286.5,4285.8,0.025]
[1757083630127,2.33323222,4285.9,4285.8,0.025]
[1757083630454,4.772,4286.3,4285.8,0.025]
[1757083631139,1.8097,4286.2,4285.8,0.025]
[1757083631541,2.33323222,4285.9,4285.8,0.025]
[1757083631741,2.98084174,4285.9,4285.8,1e-08]
[1757083631941,4.79054174,4285.9,4285.8,1e-08]
[1757083632320,9.56054174,4285.9,4285.8,1e-08]
[1757083632852,10.35254174,4285.9,4285.8,1e-08]
[1757083633240,8.58254174,4285.9,4285.8,1e-08]
[1757083633536,4.79054174,4285.9,4285.8,1e-08]
[1757083633736,9.56054174,4285.9,4285.8,1e-08]
[1757083634750,10.35154174,4285.9,4285.8,1e-08]
[1757083634932,9.55954174,4285.9,4285.8,1e-08]
[1757083635732,13.35154174,4285.9,4285.8,1e-08]
[1757083636126,13.72233504,4285.9,4285.8,1e-08]
[1757083636327,10.35054174,4285.9,4285.8,1e-08]
[1757083636956,0.792,4285.4,4284.8,1e-08]
[1757083637161,2.33377675,4284.9,4284.8,1e-08]
[1757083637357,3.12577675,4284.9,4284.8,1e-08]
[1757083637525,4.93547675,4284.9,4284.8,1e-08]
[1757083638040,8.91047675,4284.9,4284.8,1e-08]
[1757083638427,9.70247675,4284.9,4284.8,1e-08]
[1757083638734,14.2768887,4284.9,4284.8,1e-08]
[1757083638934,2.33459401,4283.4,4283.3,0.004]
[1757083639132,4.05359401,4283.4,4283.3,0.004]
[1757083639338,8.81959401,4283.4,4283.3,1.7755]
[1757083639564,8.81959401,4283.4,4283.3,0.004]
[1757083640262,4.68476958,4283.4,4283.3,0.004]
[1757083640468,0.792,4282.6,4282.3,0.09358465]
[1757083640764,0.792,4282.4,4280.0,0.103]
[1757083640959,0.35850573,4282.3,4280.0,0.103]
[1757083641161,3.0,4281.8,4278.8,0.025]
[1757083641366,3.0,4281.8,4277.3,0.09365302]
[1757083641367,2.33704924,4278.9,4278.0,4.95415587]
[1757083641568,13.36647686,4280.4,4277.3,1.3299]
[1757083641569,2.3375409,4278.0,4277.3,1.3299]
[1757083641742,2.33749227,4278.1,4276.7,0.12185486]
[1757083641743,4.765,4278.1,4277.9,1.7715]
[1757083641945,7.10250052,4278.1,4278.0,1.7715]
[1757083642267,7.10250052,4278.1,4277.2,1.3299]
[1757083642477,7.41504606,4278.1,4276.3,0.011]
[1757083642683,7.10250052,4278.1,4276.9,1.3299]
[1757083643384,7.10250052,4278.1,4276.3,0.011]
[1757083643385,2.33841548,4276.4,4276.3,0.011]
[1757083643537,4.766,4276.4,4276.3,0.011]
[1757083643734,1.72,4278.3,4276.3,0.011]
[1757083643939,4.128,4278.2,4276.4,0.02338415]
[1757083644185,4.128,4278.2,4276.4,1.33224513]
[1757083644482,4.128,4278.2,4276.5,0.0233836]
[1757083644770,4.128,4278.2,4276.3,0.011]
[1757083644948,2.1818,4278.1,4276.3,0.011]
[1757083645149,3.5307,4278.1,4276.3,0.011]
[1757083645368,2.33840524,4276.5,4276.4,0.02338415]
[1757083645533,2.33830613,4276.6,4276.5,1.3299]
[1757083645733,4.766,4277.5,4276.5,1.94975]
[1757083645940,4.766,4278.4,4276.6,1.7715]
[1757083646167,4.766,4278.4,4276.7,1.7715]
[1757083646472,4.766,4278.4,4276.8,1.7715]
[1757083646691,0.4608,4278.3,4276.3,0.011]
[1757083646978,0.1168,4276.5,4276.3,0.011]
[1757083647182,4.8828,4276.5,4276.3,0.011]
[1757083647536,4.8828,4276.5,4276.1,0.71359026]
[1757083647537,2.33863423,4276.0,4275.9,0.70290452]
[1757083647983,0.1168,4276.1,4275.9,0.70290452]
[1757083648286,2.33858817,4276.1,4275.9,0.81970452]
[1757083648585,4.766,4278.0,4275.9,0.70290452]
[1757083648739,0.1168,4277.2,4276.3,0.1168]
[1757083648951,6.9478,4277.1,4275.9,0.70290452]
[1757083649193,7.18178,4277.0,4275.9,0.70290452]
[1757083649668,7.18178,4277.0,4275.0,5.0]
[1757083649669,1.3489,4276.9,4275.0,5.0]
[1757083649862,2.33912657,4275.1,4273.2,12.57447686]
[1757083650085,2.33972859,4274.0,4273.9,1.3799]
[1757083650291,2.33972859,4274.0,4273.9,1.54160655]
[1757083650466,2.33972859,4274.0,4273.9,0.75313186]
[1757083650958,4.766,4276.4,4273.9,1.4951]
[1757083651160,4.766,4276.3,4274.0,0.13859728]
[1757083651464,1.8097,4276.2,4273.9,0.05]
[1757083651665,0.65757,4276.1,4273.9,0.05]
[1757083651855,2.33852485,4276.2,4274.3,3.0]
[1757083652056,2.33907315,4275.2,4274.5,0.792]
[1757083652271,4.766,4276.9,4274.7,0.792]
[1757083652475,4.766,4276.9,4274.9,0.792]
[1757083652670,2.33819678,4276.8,4275.0,6.22859698]
[1757083652958,0.17852326,4278.1,4275.0,6.22859698]
[1757083652959,4.766,4279.0,4276.5,3.0]
[1757083653159,4.766,4279.0,4276.6,0.02338306]
[1757083653477,0.4608,4278.7,4276.6,0.02338306]
[1757083653672,4.766,4279.0,4276.8,0.792]
[1757083653872,1.63666121,4277.0,4276.9,0.52604831]
[1757083654076,4.766,4278.1,4276.1,0.1152]
[1757083654379,1.6369447,4276.3,4276.0,1.3299]
[1757083654696,1.3489,4279.4,4276.2,0.792]
[1757083655009,0.021,4280.3,4276.2,3.0]
[1757083655216,0.4608,4279.1,4276.3,2.12346671]
[1757083655508,0.4608,4279.1,4276.3,1.3299]
[1757083655509,0.4608,4278.7,4276.3,1.3299]
[1757083655810,0.4608,4278.7,4275.6,1.3299]
[1757083655811,0.4608,4278.6,4275.6,1.3299]
[1757083655963,1.63612565,4278.4,4275.6,1.3299]
[1757083656163,1.8097,4278.5,4275.6,1.3299]
[1757083656164,1.63669563,4277.0,4275.6,1.3299]
[1757083656395,1.63712053,4275.8,4275.7,0.14451]
[1757083656992,3.19166668,4277.0,4275.1,0.02339126]
[1757083657195,1.5542,4277.0,4275.0,3.1152]
[1757083657496,1.8097,4276.9,4274.2,1.3299]
[1757083657697,1.8097,4276.9,4273.4,1.3299]
[1757083657698,0.4608,4276.8,4273.4,1.3299]
[1757083657883,1.8097,4276.7,4273.5,0.02340002]
[1757083658071,0.4608,4276.6,4274.0,1.35329728]
[1757083658272,3.8678,4276.5,4274.0,1.3299]
[1757083658590,8.0787,4276.4,4275.6,0.004]
[1757083658796,6.7298,4276.4,4275.6,0.004]
[1757083658964,0.1168,4275.9,4275.6,0.004]
[1757083659164,0.1168,4275.9,4275.2,0.1208]
[1757083659399,1.63777169,4274.1,4274.0,1.4451]
[1757083659601,0.4299,4274.6,4272.0,1.722]
[1757083659765,0.4299,4274.6,4270.8,5.407]
[1757083659766,1.63781001,4274.0,4273.9,0.70320439]
[1757083660689,4.765,4275.0,4273.9,0.70320439]
[1757083661063,4.765,4275.0,4274.0,0.02339728]
[1757083661279,4.765,4275.0,4273.9,0.70320439]
[1757083661690,4.765,4275.0,4274.0,0.02339728]
[1757083661888,1.6375921,4274.6,4273.9,0.70320439]
[1757083662103,0.025,4274.8,4273.9,0.70320439]
[1757083662666,0.025,4274.8,4274.7,0.792]
[1757083662869,0.025,4275.8,4274.7,5.15204114]
[1757083663108,0.025,4276.8,4275.5,3.792]
[1757083663307,0.025,4276.8,4275.8,0.792]
[1757083663466,0.025,4276.8,4276.3,3.792]
[1757083663666,0.025,4276.8,4276.6,3.792]
[1757083663884,1.7569,4279.4,4276.7,5.93086861]
[1757083664080,1.00264488,4279.8,4277.5,3.792]
[1757083664329,0.93471079,4279.4,4277.7,6.12970484]
[1757083664530,0.025,4279.8,4277.7,5.557]
[1757083664685,0.025,4279.8,4278.7,0.792]
[1757083664886,0.025,4279.8,4279.7,15.57447686]
[1757083665227,0.025,4279.8,4279.7,22.68892455]
[1757083665389,0.025,4279.8,4279.7,9.32144769]
[1757083665583,0.025,4279.8,4279.7,9.25802616]
[1757083665807,0.025,4279.8,4279.7,0.70202616]
[1757083668016,0.025,4279.8,4279.7,1.49402616]
[1757083668217,0.025,4279.8,4279.7,0.70202616]
[1757083668590,0.025,4279.8,4279.7,0.72539228]
[1757083668809,0.025,4279.8,4279.7,5.52757919]
[1757083669117,0.025,4279.8,4279.7,3.70202616]
[1757083669520,1.7819,4279.8,4276.9,1.722]
[1757083669723,0.1168,4279.1,4278.6,0.1168]
[1757083669896,1.7569,4279.0,4278.9,0.7023927]
[1757083670098,0.1168,4278.4,4277.7,0.1168]
[1757083670297,0.93503942,4277.9,4277.7,0.1168]
[1757083670510,0.93506007,4277.8,4277.7,0.7023927]
[1757083670720,1.7569,4277.8,4276.1,2.1874]
[1757083671019,1.7569,4277.8,4276.4,0.7026263]
[1757083671219,1.327,4278.8,4276.5,12.59786046]
[1757083671522,1.327,4278.8,4276.6,3.0]
[1757083671989,1.327,4278.8,4277.8,0.025]
[1757083672907,0.4299,4278.7,4277.8,0.025]
[1757083673108,0.17569,4278.6,4277.8,0.025]
[1757083673313,0.93503821,4277.9,4277.8,0.025]
[1757083673809,1.327,4278.4,4277.8,0.025]
[1757083674011,0.4299,4279.2,4277.8,0.025]
[1757083674012,6.087,4279.0,4277.8,0.025]
[1757083674213,1.325,4279.0,4277.9,0.02337595]
[1757083674526,1.325,4279.0,4277.8,0.025]
[1757083674527,1.76616505,4279.0,4277.8,0.025]
[1757083674688,0.93495093,4278.3,4277.8,0.025]
[1757083674887,0.4299,4278.9,4277.8,0.025]
[1757083675135,0.93503821,4277.9,4277.8,0.025]
[1757083675622,0.4299,4278.9,4277.8,0.025]
[1757083675840,0.56636604,4278.9,4277.8,0.025]
[1757083676038,0.4299,4278.9,4277.8,0.025]
[1757083677026,12.57447686,4282.2,4277.9,0.02337595]
[1757083677027,0.4299,4279.6,4277.9,0.02337595]
[1757083677197,0.4299,4279.6,4277.8,0.025]
[1757083677394,1.327,4279.5,4277.8,0.025]
[1757083677594,0.93473231,4279.3,4277.8,0.025]
[1757083677792,0.65169,4279.4,4277.8,0.025]
[1757083677793,0.4299,4279.4,4277.8,0.025]
[1757083678019,1.327,4279.3,4277.8,0.025]
[1757083678391,0.93490839,4278.5,4277.8,0.025]
[1757083678599,1.327,4279.3,4277.8,0.0483765]
[1757083679003,4.759,4279.6,4277.8,3.0483765]
[1757083679236,1.7569,4280.0,4278.3,3.0]
[1757083679537,0.001,4280.3,4278.4,0.792]
[1757083679747,0.001,4280.3,4278.6,0.792]
[1757083679900,0.001,4280.3,4278.6,2.33716284]
[1757083679901,0.4299,4280.2,4278.6,2.33716284]
[1757083680102,1.7569,4280.2,4278.7,0.02337158]
[1757083680301,1.7569,4280.2,4278.8,0.53605939]
[1757083680509,1.8737,4280.2,4279.5,0.1168]
[1757083680816,0.1168,4279.9,4279.2,0.1168]
[1757083681011,0.1168,4279.7,4279.0,0.1168]
[1757083681233,1.7569,4280.2,4278.4,0.02337322]
[1757083681436,0.1168,4279.9,4279.2,0.1168]
[1757083681735,0.1168,4279.9,4278.5,1.55978501]
[1757083681736,0.1168,4279.4,4278.7,0.1168]
[1757083681937,1.7569,4279.7,4278.2,2.33738611]
[1757083682239,1.722,4280.1,4279.2,0.1168]
[1757083682240,0.1168,4279.9,4279.2,0.1168]
[1757083682604,4.758,4280.3,4279.6,0.1168]
[1757083682605,0.001,4280.3,4279.6,0.1168]
[1757083682839,0.001,4280.3,4279.7,2.35997849]
[1757083683148,0.001,4280.3,4279.2,5.33683878]
[1757083683149,1.328,4280.3,4278.6,3.0]
[1757083683306,1.328,4280.3,4278.8,2.33710386]
[1757083683505,1.328,4280.3,4279.0,3.0]
[1757083683822,1.7569,4279.7,4277.9,2.2885795]
[1757083684025,1.7569,4279.6,4278.0,0.0233754]
[1757083684223,0.17819,4279.5,4277.9,1.74537595]
[1757083684437,1.7569,4279.4,4277.9,1.74537595]
[1757083684636,1.7569,4279.3,4277.7,0.27974]
[1757083684933,1.7569,4279.3,4277.9,2.36093364]
[1757083685135,1.7561,4279.3,4278.0,2.3375409]
[1757083685436,1.7561,4279.3,4277.8,3.025]
[1757083685752,1.7561,4279.3,4278.0,2.33748786]
[1757083686046,2.26158249,4280.0,4278.4,3.0]
[1757083686207,1.327,4280.0,4278.4,3.0]
[1757083686423,1.327,4280.0,4278.5,14.5]
[1757083686934,1.327,4280.0,4278.6,3.0]
[1757083687135,1.7569,4279.7,4277.8,0.025]
[1757083687334,0.17819,4279.6,4277.9,2.36096808]
[1757083687557,0.17819,4279.6,4277.8,0.025]
[1757083687735,1.7569,4279.5,4277.8,0.025]
[1757083687935,1.7569,4279.5,4278.3,2.33732878]
[1757083688135,1.7569,4279.5,4278.4,0.02337322]
[1757083688335,0.93475415,4279.2,4278.2,2.3374287]
[1757083688535,1.7569,4279.5,4278.3,2.26790797]
[1757083688738,1.327,4279.5,4278.4,3.02337322]
[1757083689037,0.025,4279.8,4278.4,0.02337322]
[1757083689237,0.95962852,4279.8,4278.6,2.33719415]
[1757083689427,0.025,4279.8,4278.3,7.02190797]
[1757083689754,0.025,4279.8,4278.7,2.33712552]
[1757083689954,0.025,4279.8,4278.8,4.754]
[1757083690557,0.025,4279.8,4278.4,0.7021908]
[1757083690967,0.025,4279.8,4278.4,5.4551908]
[1757083691129,0.025,4279.8,4277.8,0.025]
[1757083691130,0.93468863,4279.5,4277.8,0.025]
[1757083691464,0.792,4279.2,4276.8,0.025]
[1757083691626,3.0,4279.3,4276.8,0.025]
[1757083691826,3.0,4279.0,4276.8,0.025]
[1757083692051,0.96991,4278.9,4276.8,0.025]
[1757083692256,2.91601,4278.9,4276.8,0.025]
[1757083692459,3.0,4278.8,4276.8,0.025]
[1757083692632,1.9461,4278.9,4276.8,0.025]
[1757083692829,0.1168,4278.0,4277.3,0.1168]
[1757083693128,6.2296,4277.9,4276.8,0.025]
[1757083693352,0.1168,4277.3,4276.8,0.025]
[1757083693537,1.5944,4277.3,4276.8,0.025]
[1757083693736,1.722,4278.0,4276.8,0.025]
[1757083694068,1.9461,4277.2,4276.8,0.025]
[1757083694361,0.93525684,4276.9,4276.8,0.025]
[1757083694549,0.93530058,4276.7,4276.6,0.004]
[1757083694932,2.41290058,4276.7,4276.6,0.004]
[1757083695129,1.4776,4277.4,4276.6,0.004]
[1757083695358,0.4685,4277.3,4276.6,0.004]
[1757083695860,0.93529258,4276.8,4276.6,0.004]
[1757083696043,0.93529557,4276.8,4276.6,0.004]
[1757083696245,0.93529359,4276.8,4276.6,0.004]
[1757083696453,0.93519802,4277.2,4276.6,0.004]
[1757083696955,1.722,4277.8,4276.6,0.004]
[1757083697170,2.08881,4277.8,4276.6,0.004]
[1757083697333,1.722,4277.8,4276.6,0.004]
[1757083697528,1.747,4277.8,4276.6,0.004]
[1757083697957,1.4776,4277.7,4276.6,0.004]
[1757083698138,0.025,4277.8,4276.6,0.004]
[1757083698339,0.93512755,4277.5,4276.6,0.004]
[1757083698559,0.025,4277.8,4276.7,0.02338251]
[1757083699156,0.025,4277.8,4276.9,2.33814211]
[1757083699372,0.025,4277.8,4277.6,2.3377349]
[1757083699541,0.025,4277.8,4277.7,2.33770484]
[1757083699739,0.025,4277.8,4277.7,3.15308188]
[1757083699928,0.025,4277.8,4277.7,8.57367118]
[1757083700272,0.025,4277.8,4277.7,19.4546893]
[1757083700450,0.025,4277.8,4277.7,19.83770484]
[1757083700960,0.025,4277.8,4277.7,21.08800484]
[1757083701152,0.025,4277.8,4277.7,21.55390484]
[1757083701352,0.001,4280.3,4278.7,2.33715848]
[1757083701543,0.93552806,4280.3,4278.7,5.33715848]
[1757083701740,0.001,4280.3,4278.7,7.03789714]
[1757083701952,0.001,4280.3,4278.7,22.00379714]
[1757083702153,0.001,4280.3,4278.7,22.70601392]
[1757083702355,1.9711,4278.8,4278.7,0.70221678]
[1757083702554,1.9711,4278.8,4276.6,0.004]
[1757083702758,1.5026,4278.8,4277.6,0.09367079]
[1757083703034,0.4685,4278.7,4277.6,0.09367079]
[1757083703257,0.93488524,4278.6,4277.6,0.09367079]
[1757083703454,0.4685,4278.7,4277.6,0.09367079]
[1757083703665,0.93503746,4278.0,4277.0,14.5]
[1757083703863,1.9461,4277.9,4276.6,0.004]
[1757083704162,1.9461,4278.6,4276.8,0.70265593]
[1757083704340,1.9461,4278.6,4277.0,3.0]
[1757083704542,0.025,4278.8,4276.8,0.72765593]
[1757083704543,1.9461,4278.5,4276.8,0.72765593]
[1757083704765,0.792,4278.3,4276.6,0.004]
[1757083705065,0.57381,4278.2,4276.6,0.004]
[1757083705241,6.4,4278.1,4276.6,0.004]
[1757083705448,7.3349945,4278.1,4276.6,0.004]
[1757083705681,1.9461,4278.0,4276.6,0.004]
[1757083706032,2.88111636,4278.0,4276.6,0.004]
[1757083706247,1.9461,4278.0,4276.6,0.004]
[1757083706432,0.83461,4277.9,4276.6,0.004]
[1757083706634,1.9461,4278.0,4276.6,0.004]
[1757083706884,1.9461,4278.0,4276.7,0.02338251]
[1757083707030,1.9461,4278.0,4276.6,0.004]
[1757083707235,1.4776,4278.0,4276.6,3.004]
[1757083707444,0.93497131,4278.3,4276.8,3.0]
[1757083707657,0.025,4277.8,4277.0,3.0]
[1757083707832,0.025,4277.8,4276.6,0.004]
[1757083708036,2.88118496,4277.7,4276.6,0.004]
[1757083708353,1.9461,4277.7,4276.6,0.004]
[1757083708560,1.9461,4277.7,4277.0,2.33806489]
[1757083708856,0.025,4277.8,4276.9,2.33810659]
[1757083709060,0.025,4277.8,4277.1,14.5]
[1757083709269,0.025,4277.8,4277.1,16.83799124]
[1757083709438,0.4685,4277.7,4277.1,14.5]
[1757083710483,0.4685,4277.7,4276.6,0.004]
[1757083710638,1.4776,4277.6,4276.6,0.004]
[1757083710840,0.93530058,4276.7,4276.6,0.004]
[1757083711266,2.88140058,4276.7,4276.6,0.004]
[1757083711768,7.62740058,4276.7,4276.6,0.004]
[1757083712946,7.62660058,4276.7,4275.8,0.025]
[1757083713262,0.93547557,4275.9,4275.8,0.025]
[1757083713462,0.93547557,4275.9,4275.8,1e-08]
[1757083713463,2.84456795,4275.9,4275.8,1e-08]
[1757083713660,4.79066795,4275.9,4275.8,1e-08]
[1757083714674,0.93547557,4275.9,4275.8,1e-08]
[1757083714873,2.88157557,4275.9,4275.8,1e-08]
[1757083715042,1.9461,4275.9,4275.8,1e-08]
[1757083715236,4.745,4276.0,4275.8,1e-08]
[1757083715842,1.4776,4276.5,4275.8,1e-08]
[1757083716062,2.41296409,4276.5,4275.8,1e-08]
[1757083716250,1.4776,4276.5,4275.8,1e-08]
[1757083716453,0.93536619,4276.4,4275.8,1e-08]
[1757083716658,4.746,4276.6,4275.8,1e-08]
[1757083716863,0.4685,4276.9,4275.8,1e-08]
[1757083717192,4.746,4276.8,4275.8,1e-08]
[1757083717546,6.74505,4276.8,4275.8,1e-08]
[1757083717747,1.4776,4278.1,4275.9,0.4583]
[1757083717958,0.4685,4278.5,4276.0,1.20218634]
[1757083718177,0.4685,4278.5,4276.1,5.79687954]
[1757083718486,0.93498707,4278.2,4277.1,2.33798937]
[1757083718695,1.4776,4278.7,4276.3,3.0]
[1757083718894,0.93490302,4278.6,4277.5,2.33780133]
[1757083719177,1.4776,4278.7,4276.8,0.02338196]
[1757083719386,1.4776,4278.7,4276.7,0.02338251]
[1757083719548,0.4412,4278.5,4276.4,0.82033]
[1757083719748,5.1852,4277.9,4276.0,2.33863423]
[1757083719948,0.66978,4277.7,4276.2,2.3384808]
[1757083720171,5.1852,4277.9,4276.4,2.33836314]
[1757083720375,1.4866,4278.0,4276.5,2.3383535]
[1757083720569,1.4866,4278.0,4276.0,0.74128342]
[1757083720848,0.4412,4277.7,4276.0,0.74128342]
[1757083721074,1.4866,4277.6,4275.9,2.33868893]
[1757083721246,1.4866,4277.6,4276.0,2.33858798]
[1757083721452,1.4866,4277.6,4275.8,1e-08]
[1757083721453,0.93529319,4276.8,4275.8,1e-08]
[1757083721662,4.743,4277.2,4275.8,1e-08]
[1757083721947,1.9278,4277.0,4275.8,1e-08]
[1757083722546,1.9278,4277.0,4275.9,2.33868669]
[1757083722775,1.9278,4277.0,4275.8,1e-08]
[1757083722970,1.9538,4277.8,4275.8,1e-08]
[1757083723181,1.5126,4277.8,4276.0,3.0]
[1757083723355,1.5126,4277.8,4276.4,2.3384026]
[1757083723551,1.5126,4277.8,4276.1,0.02338579]
[1757083723858,0.026,4277.8,4276.4,3.0]
[1757083724186,1.5126,4277.8,4276.0,0.70266086]
[1757083724351,0.026,4277.8,4276.7,2.33822184]
[1757083724557,0.96106171,4277.8,4276.5,2.33831965]
[1757083724756,0.026,4277.8,4276.1,1.01003709]
[1757083724976,0.1168,4277.4,4276.7,0.1168]
[1757083725279,0.4412,4277.4,4276.0,2.33858693]
[1757083725482,0.4412,4277.4,4276.1,0.40615869]
[1757083725688,1.4866,4277.3,4275.8,4.06173819]
[1757083725888,1.4866,4277.3,4275.8,4.06173873]
[1757083726087,0.93527677,4276.9,4275.8,4.06173873]
[1757083726291,0.4412,4276.8,4275.8,1e-08]
[1757083726589,0.93533933,4276.6,4275.8,1e-08]
[1757083726788,0.4412,4276.8,4275.8,1e-08]
[1757083726974,1.4866,4276.7,4275.8,1e-08]
[1757083727562,0.4412,4276.6,4275.8,1e-08]
[1757083728861,4.74,4277.2,4275.9,2.33864324]
[1757083729191,4.74,4277.2,4275.8,1e-08]
[1757083729397,5.6751932,4277.2,4276.0,2.33863375]
[1757083729685,4.74,4277.2,4276.0,2.33863218]
[1757083729906,4.74,4277.2,4275.8,1e-08]
[1757083729907,0.93547557,4275.9,4275.8,1e-08]
[1757083730072,7.39847557,4275.9,4275.8,1e-08]
[1757083730274,8.3908,4275.9,4274.0,0.70307914]
[1757083730473,0.83908,4275.8,4273.8,0.025]
[1757083730678,5.384,4275.7,4273.8,0.025]
[1757083730875,7.3118,4275.7,4273.8,0.025]
[1757083731562,0.9356944,4274.9,4273.8,0.025]
[1757083731762,5.6746944,4274.9,4273.8,0.025]
[1757083731996,7.6024944,4274.9,4273.8,0.025]
[1757083733715,7.6024944,4274.9,4274.8,0.029]
[1757083733716,8.32018368,4274.9,4274.8,0.029]
[1757083734890,7.87898368,4274.9,4274.8,0.029]
[1757083735097,8.32018368,4274.9,4274.8,0.029]
[1757083735910,6.6668,4274.9,4274.8,0.029]
[1757083737293,6.2256,4274.9,4274.8,0.029]
[1757083737537,6.6668,4274.9,4274.8,0.029]
[1757083738188,4.739,4274.9,4274.8,0.029]
[1757083738821,0.1168,4275.0,4274.8,0.029]
[1757083739203,0.1168,4275.0,4274.9,2.339236]
[1757083739403,4.737,4275.3,4274.8,0.38263128]
[1757083739624,0.1168,4275.5,4274.8,0.1458]
[1757083739836,0.1168,4275.5,4274.9,0.4331]
[1757083739991,0.1168,4275.5,4274.8,0.1458]
[1757083740192,0.001,4276.6,4275.0,5.3391612]
[1757083740436,4.736,4276.4,4274.9,0.70288805]
[1757083740602,4.736,4276.4,4274.8,0.029]
[1757083740603,0.66648,4276.3,4274.8,0.4621]
[1757083740808,4.7352,4276.4,4275.0,2.33913759]
[1757083741038,4.7352,4276.4,4274.9,0.70288805]
[1757083741192,4.7352,4276.4,4275.0,3.0]
[1757083741543,0.001,4276.6,4275.3,2.33901714]
[1757083741720,0.001,4276.6,4275.2,3.0]
[1757083741893,0.001,4276.6,4275.4,3.13096243]
[1757083742228,0.001,4276.6,4275.5,7.75838907]
[1757083742439,0.001,4276.6,4275.6,3.0]
[1757083742596,0.001,4276.6,4276.5,2.3383608]
[1757083742841,0.001,4276.6,4276.5,2.3617444]
[1757083743108,0.001,4276.6,4276.5,7.69467816]
[1757083743523,0.001,4276.6,4275.8,1.1532]
[1757083743722,0.001,4276.6,4276.5,2.7714608]
[1757083743895,0.001,4276.6,4276.5,5.7714608]
[1757083744100,0.001,4276.6,4276.5,11.6586608]
[1757083744301,0.001,4276.6,4276.5,11.9051721]
[1757083744495,0.001,4276.6,4276.5,13.0583721]
[1757083744801,0.026,4277.8,4277.7,2.33770484]
[1757083745230,0.026,4277.8,4277.7,5.79418188]
[1757083745550,0.026,4277.8,4277.7,7.71600484]
[1757083745840,0.001,4278.3,4278.2,2.33743163]
[1757083746339,0.001,4278.3,4278.2,10.86143163]
[1757083746498,0.001,4278.3,4278.2,10.50253163]
[1757083746698,0.001,4278.3,4278.2,12.44673163]
[1757083746947,0.001,4278.3,4278.2,8.1641]
[1757083747098,0.001,4278.3,4278.2,3.0]
[1757083747298,0.001,4278.3,4278.2,0.3]
[1757083747538,0.001,4278.3,4278.2,2.77053163]
[1757083747865,0.001,4278.3,4278.2,4.73910594]
[1757083748143,0.001,4278.3,4278.2,7.71573163]
[1757083748440,0.001,4278.3,4278.2,12.44573163]
[1757083748640,0.001,4278.3,4278.2,7.71573163]
[1757083748804,0.001,4278.3,4278.2,8.72105568]
[1757083749002,0.001,4278.3,4278.2,12.39148875]
[1757083749215,0.001,4278.3,4278.2,8.81468875]
[1757083749565,0.025,4278.8,4278.3,3.0]
[1757083749769,0.025,4278.8,4278.7,2.33715848]
[1757083750061,0.025,4278.8,4278.7,5.57087433]
[1757083750375,0.025,4278.8,4278.7,10.29987433]
[1757083750523,0.025,4279.8,4279.7,2.33661237]
[1757083750712,0.025,4279.8,4279.7,10.06461237]
[1757083750910,22.65455412,4280.0,4279.9,3.12850318]
[1757083751225,22.65455412,4280.0,4279.9,12.57400318]
[1757083751414,22.65455412,4280.0,4279.9,6.69280318]
[1757083751741,22.65455412,4280.0,4279.9,5.45330318]
[1757083751944,22.65455412,4280.0,4279.9,10.62780318]
[1757083752247,15.25910824,4280.0,4279.9,8.38823553]
[1757083752411,15.25910824,4280.0,4279.9,7.14873553]
[1757083752618,15.25910824,4280.0,4279.9,3.0]
[1757083752820,15.25910824,4280.0,4279.9,7.726]